[Event "7° Rencontres Internationales des Echecs Francophones"]
[Site "PARIS, France"]
[Date "2019.08.10"]
[Round "10.7"]
[White "Ternault, Mathieu"]
[Black "Chabanon, Jean-Luc"]
[Result "1-0"]
[TimeControl "90'+30' + 30seconds/move"]
[WhiteElo "2158"]
[BlackElo "2448"]

1. b3 {[%clk 00:05:04]} {[%emt 00:00:01]} d5 {[%clk 00:05:02]} {[%emt
00:00:06]} 2. Nf3 {[%clk 00:05:05]} c5 {[%clk 00:04:56]} {[%emt 00:00:09]} 3.
Bb2 {[%clk 00:05:06]} {[%emt 00:00:02]} f6 {[%clk 00:04:43]} {[%emt 00:00:17]}
4. Nc3 {[%clk 00:04:33]} {[%emt 00:00:35]} e5 {[%clk 00:04:30]} {[%emt
00:00:16]} 5. e4 {[%clk 00:04:35]} {[%emt 00:00:01]} dxe4 {[%clk 00:04:22]}
{[%emt 00:00:12]} 6. Nxe4 {[%clk 00:04:30]} {[%emt 00:00:08]} Be6 {[%clk
00:03:59]} {[%emt 00:00:25]} 7. Bb5+ {[%clk 00:04:17]} {[%emt 00:00:16]} Nd7
{[%clk 00:03:58]} {[%emt 00:00:04]} 8. Qe2 {[%clk 00:04:17]} {[%emt 00:00:03]}
a6 {[%clk 00:03:26]} {[%emt 00:00:36]} 9. Bc4 {[%clk 00:04:19]} {[%emt
00:00:01]} Bxc4 {[%clk 00:03:17]} {[%emt 00:00:12]} 10. Qxc4 {[%clk 00:04:03]}
{[%emt 00:00:18]} Qe7 {[%clk 00:01:51]} {[%emt 00:01:28]} 11. O-O {[%clk
00:04:04]} {[%emt 00:00:03]} Qf7 {[%clk 00:01:33]} {[%emt 00:00:22]} 12. Qe2
{[%clk 00:04:04]} {[%emt 00:00:03]} Qd5 {[%clk 00:01:13]} {[%emt 00:00:22]} 13.
c4 {[%clk 00:04:03]} {[%emt 00:00:05]} Qc6 {[%clk 00:01:06]} {[%emt 00:00:09]}
14. d4 {[%clk 00:03:44]} {[%emt 00:00:22]} cxd4 {[%clk 00:00:39]} {[%emt
00:00:31]} 15. Bxd4 {[%clk 00:03:46]} Ne7 {[%clk 00:00:36]} {[%emt 00:00:06]}
16. Bb2 {[%clk 00:03:17]} {[%emt 00:00:31]} Nf5 {[%clk 00:00:35]} {[%emt
00:00:04]} 17. Rfd1 {[%clk 00:02:50]} {[%emt 00:00:30]} Be7 {[%clk 00:00:34]}
{[%emt 00:00:04]} 18. Nc3 {[%clk 00:02:03]} {[%emt 00:00:50]} O-O-O {[%clk
00:00:19]} {[%emt 00:00:20]} 19. Nd5 {[%clk 00:02:04]} Bd6 {[%clk 00:00:11]}
{[%emt 00:00:13]} 20. b4 {[%clk 00:01:57]} {[%emt 00:00:09]} Kb8 {[%clk
00:00:11]} {[%emt 00:00:02]} 21. a4 {[%clk 00:01:53]} {[%emt 00:00:07]} Rc8
{[%clk 00:00:06]} {[%emt 00:00:09]} 22. Rdc1 {[%clk 00:01:34]} {[%emt
00:00:21]} Rhe8 {[%clk 00:00:07]} {[%emt 00:00:03]} 23. b5 {[%clk 00:01:19]}
{[%emt 00:00:18]} Qc5 {[%clk 00:00:09]} {[%emt 00:00:02]} 24. Qe4 {[%clk
00:00:54]} {[%emt 00:00:27]} Nd4 {[%clk 00:00:08]} {[%emt 00:00:04]} 25. Ba3
{[%clk 00:00:56]} Qxa3 {[%clk 00:00:09]} {[%emt 00:00:03]} 26. Rxa3 {[%clk
00:00:58]} Bxa3 {[%clk 00:00:11]} 27. Rb1 {[%clk 00:00:59]} {[%emt 00:00:01]}
a5 {[%clk 00:00:13]} 28. Nxd4 {[%clk 00:00:52]} {[%emt 00:00:10]} exd4 {[%clk
00:00:12]} {[%emt 00:00:04]} 29. Qxd4 {[%clk 00:00:50]} {[%emt 00:00:05]} Bc5
{[%clk 00:00:14]} {[%emt 00:00:01]} 30. Qd2 {[%clk 00:00:52]} {[%emt 00:00:01]}
b6 {[%clk 00:00:13]} {[%emt 00:00:04]} 31. h3 {[%clk 00:00:41]} {[%emt
00:00:14]} Ne5 {[%clk 00:00:15]} {[%emt 00:00:02]} 32. Qf4 {[%clk 00:00:40]}
{[%emt 00:00:03]} Kb7 {[%clk 00:00:13]} {[%emt 00:00:06]} 33. Rd1 {[%clk
00:00:41]} {[%emt 00:00:01]} Re6 {[%clk 00:00:11]} {[%emt 00:00:05]} 34. Qe4
{[%clk 00:00:33]} {[%emt 00:00:11]} Ka7 {[%clk 00:00:13]} {[%emt 00:00:02]} 35.
Qxh7 {[%clk 00:00:32]} {[%emt 00:00:04]} Bf8 {[%clk 00:00:12]} {[%emt
00:00:04]} 36. Nf4 {[%clk 00:00:27]} {[%emt 00:00:07]} Re7 {[%clk 00:00:13]}
{[%emt 00:00:03]} 37. Ng6 {[%clk 00:00:16]} {[%emt 00:00:14]} Nxg6 {[%clk
00:00:14]} {[%emt 00:00:01]} 38. Qxg6 {[%clk 00:00:18]} {[%emt 00:00:02]} Rec7
{[%clk 00:00:15]} {[%emt 00:00:01]} 39. Rd4 {[%clk 00:00:13]} {[%emt 00:00:07]}
Bc5 {[%clk 00:00:17]} 40. Re4 {[%clk 00:00:15]} Rd8 {[%clk 00:00:19]} {[%emt
00:00:02]} 41. g3 {[%clk 00:00:12]} {[%emt 00:00:06]} Rd1+ {[%clk 00:00:19]}
{[%emt 00:00:02]} 42. Kg2 {[%clk 00:00:14]} Rd2 {[%clk 00:00:21]} {[%emt
00:00:02]} 43. Rf4 {[%clk 00:00:11]} {[%emt 00:00:06]} Re7 {[%clk 00:00:22]}
{[%emt 00:00:01]} 44. h4 {[%clk 00:00:12]} {[%emt 00:00:03]} Be3 {[%clk
00:00:19]} {[%emt 00:00:05]} 45. Rf3 {[%clk 00:00:11]} {[%emt 00:00:04]} Bc5
{[%clk 00:00:20]} {[%emt 00:00:02]} 46. h5 {[%clk 00:00:13]} {[%emt 00:00:01]}
Rd4 {[%clk 00:00:21]} {[%emt 00:00:03]} 47. Qc2 {[%clk 00:00:11]} {[%emt
00:00:04]} Re6 {[%clk 00:00:17]} {[%emt 00:00:07]} 48. Rd3 {[%clk 00:00:10]}
{[%emt 00:00:04]} Rde4 {[%clk 00:00:16]} {[%emt 00:00:04]} 49. Rd7+ {[%clk
00:00:12]} {[%emt 00:00:01]} Kb8 {[%clk 00:00:19]} 50. Qd2 {[%clk 00:00:07]}
{[%emt 00:00:08]} Re7 {[%clk 00:00:13]} {[%emt 00:00:09]} 51. Rxe7 {[%clk
00:00:06]} {[%emt 00:00:05]} Rxe7 {[%clk 00:00:15]} 52. Qd8+ {[%clk 00:00:08]}
Kb7 {[%clk 00:00:17]} 53. Qd5+ {[%clk 00:00:09]} {[%emt 00:00:01]} Kc7 {[%clk
00:00:19]} {[%emt 00:00:02]} 54. g4 {[%clk 00:00:11]} Rd7 {[%clk 00:00:21]}
{[%emt 00:00:01]} 55. Qc6+ {[%clk 00:00:13]} Kd8 {[%clk 00:00:23]} 56. h6
{[%clk 00:00:13]} {[%emt 00:00:02]} gxh6 {[%clk 00:00:23]} {[%emt 00:00:04]} 57.
Qxf6+ {[%clk 00:00:15]} Ke8 {[%clk 00:00:20]} {[%emt 00:00:06]} 58. Qxh6 {[%clk
00:00:16]} {[%emt 00:00:03]} Rd4 {[%clk 00:00:22]} 59. Qe6+ {[%clk 00:00:17]}
{[%emt 00:00:02]} Kf8 {[%clk 00:00:24]} {[%emt 00:00:01]} 60. g5 {[%clk
00:00:18]} {[%emt 00:00:01]} Kg7 {[%clk 00:00:26]} {[%emt 00:00:02]} 61. Qf6+
{[%clk 00:00:20]} {[%emt 00:00:01]} Kg8 {[%clk 00:00:28]} 62. g6 {[%clk
00:00:20]} {[%emt 00:00:04]} 1-0

[Event "7° Rencontres Internationales des Echecs Francophones"]
[Site "PARIS, France"]
[Date "2019.08.10"]
[Round "10.10"]
[White "Hamdouchi, Hicham"]
[Black "Bouget, Alexandre"]
[Result "1-0"]
[TimeControl "90'+30' + 30seconds/move"]
[WhiteElo "2514"]
[BlackElo "2203"]

1. e4 {[%clk 00:05:05]} {[%emt 00:00:38]} e5 {[%clk 00:05:05]} {[%emt
00:00:02]} 2. Nf3 {[%clk 00:05:06]} {[%emt 00:00:04]} Nc6 {[%clk 00:05:08]} 3.
Bb5 {[%clk 00:05:08]} a6 {[%clk 00:05:10]} 4. Ba4 {[%clk 00:05:10]} Nf6 {[%clk
00:05:12]} 5. O-O {[%clk 00:05:11]} {[%emt 00:00:02]} b5 {[%clk 00:05:14]} 6.
Bb3 {[%clk 00:05:14]} {[%emt 00:00:02]} Bb7 {[%clk 00:05:16]} {[%emt 00:00:01]}
7. d3 {[%clk 00:05:11]} {[%emt 00:00:06]} Bc5 {[%clk 00:05:17]} {[%emt
00:00:01]} 8. Nc3 {[%clk 00:05:07]} {[%emt 00:00:06]} O-O {[%clk 00:05:07]}
{[%emt 00:00:14]} 9. a4 {[%clk 00:05:01]} {[%emt 00:00:10]} Na5 {[%clk
00:05:02]} {[%emt 00:00:06]} 10. Nd5 {[%clk 00:05:02]} {[%emt 00:00:03]} Nxb3
{[%clk 00:03:52]} {[%emt 00:01:14]} 11. Nxf6+ {[%clk 00:05:03]} Qxf6 {[%clk
00:03:53]} {[%emt 00:00:02]} 12. cxb3 {[%clk 00:05:05]} {[%emt 00:00:02]} d5
{[%clk 00:03:17]} {[%emt 00:00:39]} 13. Qc2 {[%clk 00:05:06]} {[%emt 00:00:02]}
dxe4 {[%clk 00:03:06]} {[%emt 00:00:14]} 14. dxe4 {[%clk 00:05:02]} {[%emt
00:00:06]} Bd6 {[%clk 00:03:01]} {[%emt 00:00:09]} 15. Be3 {[%clk 00:04:42]}
{[%emt 00:00:23]} Qg6 {[%clk 00:02:57]} {[%emt 00:00:07]} 16. Nd2 {[%clk
00:04:44]} {[%emt 00:00:01]} f5 {[%clk 00:02:52]} {[%emt 00:00:09]} 17. f3
{[%clk 00:04:45]} {[%emt 00:00:01]} f4 {[%clk 00:02:29]} {[%emt 00:00:26]} 18.
Bc5 {[%clk 00:04:29]} {[%emt 00:00:18]} Rad8 {[%clk 00:02:14]} {[%emt
00:00:19]} 19. b4 {[%clk 00:04:07]} {[%emt 00:00:25]} bxa4 {[%clk 00:01:44]}
{[%emt 00:00:33]} 20. Nc4 {[%clk 00:03:28]} {[%emt 00:00:42]} Bc6 {[%clk
00:01:41]} {[%emt 00:00:06]} 21. Rfd1 {[%clk 00:03:19]} {[%emt 00:00:12]} Bb5
{[%clk 00:01:29]} {[%emt 00:00:15]} 22. Bxd6 {[%clk 00:02:58]} {[%emt
00:00:24]} cxd6 {[%clk 00:01:30]} {[%emt 00:00:02]} 23. Nb6 {[%clk 00:02:59]}
{[%emt 00:00:08]} h5 {[%clk 00:01:04]} {[%emt 00:00:23]} 24. Rac1 {[%clk
00:02:50]} {[%emt 00:00:12]} h4 {[%clk 00:00:52]} {[%emt 00:00:15]} 25. h3
{[%clk 00:02:51]} {[%emt 00:00:03]} Qg5 {[%clk 00:00:35]} {[%emt 00:00:18]} 26.
Nxa4 {[%clk 00:02:18]} {[%emt 00:00:36]} Rf6 {[%clk 00:00:33]} {[%emt
00:00:05]} 27. Nb6 {[%clk 00:02:09]} {[%emt 00:00:13]} Rg6 {[%clk 00:00:34]}
{[%emt 00:00:02]} 28. Qf2 {[%clk 00:02:06]} {[%emt 00:00:05]} Qh5 {[%clk
00:00:16]} {[%emt 00:00:22]} 29. Rc7 {[%clk 00:01:51]} {[%emt 00:00:18]} Kh7
{[%clk 00:00:16]} {[%emt 00:00:03]} 30. Rdc1 {[%clk 00:01:47]} {[%emt
00:00:07]} Rg3 {[%clk 00:00:13]} {[%emt 00:00:07]} 31. Nd5 {[%clk 00:01:37]}
{[%emt 00:00:12]} Bd7 {[%clk 00:00:08]} {[%emt 00:00:08]} 32. Kh2 {[%clk
00:01:13]} {[%emt 00:00:26]} Kh6 {[%clk 00:00:11]} 33. Ra7 {[%clk 00:01:03]}
{[%emt 00:00:14]} Bxh3 {[%clk 00:00:09]} {[%emt 00:00:06]} 34. gxh3 {[%clk
00:00:59]} {[%emt 00:00:07]} Rxf3 {[%clk 00:00:11]} {[%emt 00:00:01]} 35. Qg2
{[%clk 00:00:38]} {[%emt 00:00:23]} Rg3 {[%clk 00:00:13]} {[%emt 00:00:01]} 36.
Qf1 {[%clk 00:00:38]} {[%emt 00:00:02]} Rf3 {[%clk 00:00:14]} {[%emt 00:00:02]}
37. Qd1 {[%clk 00:00:27]} {[%emt 00:00:13]} Rf2+ {[%clk 00:00:07]} {[%emt
00:00:11]} 38. Kg1 {[%clk 00:00:28]} {[%emt 00:00:02]} Rf3 {[%clk 00:00:06]}
{[%emt 00:00:04]} 39. Ne7 {[%clk 00:00:26]} {[%emt 00:00:04]} Rg3+ {[%clk
00:00:07]} {[%emt 00:00:04]} 40. Kh2 {[%clk 00:00:28]} Rf3 {[%clk 00:00:05]}
{[%emt 00:00:05]} 41. Nf5+ {[%clk 00:00:26]} {[%emt 00:00:27]} Kh7 {[%clk
00:00:04]} {[%emt 00:01:04]} 42. Rxg7+ {[%clk 00:01:25]} {[%emt 00:00:02]} Kh8
{[%clk 00:00:07]} 43. Rg4 {[%clk 00:01:24]} {[%emt 00:00:07]} Rf2+ {[%clk
00:00:08]} {[%emt 00:00:01]} 44. Kg1 {[%clk 00:01:24]} {[%emt 00:00:03]} Rxb2
{[%clk 00:00:10]} {[%emt 00:00:02]} 45. Rxh4 {[%clk 00:01:15]} {[%emt
00:00:11]} Rg8+ {[%clk 00:00:09]} {[%emt 00:00:04]} 46. Kh1 {[%clk 00:01:17]}
{[%emt 00:00:02]} Qxh4 {[%clk 00:00:08]} {[%emt 00:00:04]} 47. Nxh4 {[%clk
00:01:18]} 1-0



[ePGN "0.1;DGT LiveChess/2.2.4"]

[Event "7° Rencontres Internationales des Echecs Francophones"]
[Site "PARIS, France"]
[Date "2019.08.10"]
[Round "11.10"]
[White "Rakotomaharo, Fy Antenaina"]
[Black "Dardha, Arben"]
[Result "1-0"]
[TimeControl "90'+30' + 30seconds/move"]
[WhiteElo "2364"]
[BlackElo "2222"]

1. e4 {[%clk 00:05:05]} c5 {[%clk 00:05:05]} {[%emt 00:00:02]} 2. Nf3 {[%clk
00:05:06]} Nc6 {[%clk 00:05:08]} {[%emt 00:00:01]} 3. d4 {[%clk 00:05:08]} cxd4
{[%clk 00:05:10]} {[%emt 00:00:01]} 4. Nxd4 {[%clk 00:05:09]} {[%emt 00:00:01]}
Nf6 {[%clk 00:05:12]} 5. Nc3 {[%clk 00:05:12]} e5 {[%clk 00:05:14]} {[%emt
00:00:02]} 6. Ndb5 {[%clk 00:05:14]} d6 {[%clk 00:05:16]} 7. Bg5 {[%clk
00:05:15]} {[%emt 00:00:03]} a6 {[%clk 00:05:19]} {[%emt 00:00:02]} 8. Na3
{[%clk 00:05:17]} b5 {[%clk 00:05:21]} 9. Nd5 {[%clk 00:05:19]} Be7 {[%clk
00:05:23]} 10. Bxf6 {[%clk 00:05:20]} {[%emt 00:00:02]} Bxf6 {[%clk 00:05:25]}
11. c3 {[%clk 00:05:22]} {[%emt 00:00:01]} Bg5 {[%clk 00:05:27]} {[%emt
00:00:02]} 12. Nc2 {[%clk 00:05:22]} {[%emt 00:00:02]} O-O {[%clk 00:05:28]}
{[%emt 00:00:02]} 13. h4 {[%clk 00:05:24]} {[%emt 00:00:01]} Bh6 {[%clk
00:05:31]} {[%emt 00:00:01]} 14. g4 {[%clk 00:05:26]} Bf4 {[%clk 00:05:33]} 15.
Qf3 {[%clk 00:05:28]} {[%emt 00:00:02]} Be6 {[%clk 00:05:15]} {[%emt 00:00:20]}
16. Bd3 {[%clk 00:05:30]} Bxd5 {[%clk 00:04:51]} {[%emt 00:00:28]} 17. exd5
{[%clk 00:05:30]} {[%emt 00:00:02]} Ne7 {[%clk 00:04:46]} {[%emt 00:00:09]} 18.
g5 {[%clk 00:05:25]} {[%emt 00:00:09]} f5 {[%clk 00:04:00]} {[%emt 00:00:49]}
19. gxf6 {[%clk 00:05:19]} {[%emt 00:00:08]} Rxf6 {[%clk 00:04:00]} {[%emt
00:00:03]} 20. Ne3 {[%clk 00:04:53]} {[%emt 00:00:29]} Bxe3 {[%clk 00:03:04]}
{[%emt 00:00:59]} 21. Qxe3 {[%clk 00:04:54]} {[%emt 00:00:02]} Rf4 {[%clk
00:02:59]} {[%emt 00:00:09]} 22. O-O-O {[%clk 00:04:50]} {[%emt 00:00:07]} Rc8
{[%clk 00:02:20]} {[%emt 00:00:42]} 23. Kb1 {[%clk 00:04:32]} {[%emt 00:00:21]}
Rc5 {[%clk 00:01:58]} {[%emt 00:00:24]} 24. Be4 {[%clk 00:04:11]} {[%emt
00:00:24]} Qf8 {[%clk 00:01:56]} {[%emt 00:00:06]} 25. f3 {[%clk 00:04:11]}
{[%emt 00:00:03]} Nf5 {[%clk 00:01:51]} {[%emt 00:00:08]} 26. Qd3 {[%clk
00:04:04]} {[%emt 00:00:09]} Ng3 {[%clk 00:01:37]} {[%emt 00:00:18]} 27. Bxh7+
{[%clk 00:04:05]} {[%emt 00:00:02]} Kh8 {[%clk 00:01:40]} 28. Rhg1 {[%clk
00:03:58]} {[%emt 00:00:10]} Rxf3 {[%clk 00:01:32]} {[%emt 00:00:11]} 29. Qg6
{[%clk 00:03:59]} Qf5+ {[%clk 00:01:17]} {[%emt 00:00:19]} 30. Qxf5 {[%clk
00:02:52]} {[%emt 00:01:10]} Nxf5 {[%clk 00:01:19]} {[%emt 00:00:01]} 31. Bg6
{[%clk 00:02:54]} {[%emt 00:00:01]} Nxh4 {[%clk 00:01:02]} {[%emt 00:00:20]} 32.
Be8 {[%clk 00:02:47]} {[%emt 00:00:10]} Nf5 {[%clk 00:00:57]} {[%emt 00:00:09]}
33. Bd7 {[%clk 00:02:34]} {[%emt 00:00:17]} Nh6 {[%clk 00:00:56]} {[%emt
00:00:02]} 34. Be6 {[%clk 00:02:27]} {[%emt 00:00:10]} Rc4 {[%clk 00:00:57]}
{[%emt 00:00:03]} 35. Kc2 {[%clk 00:02:08]} {[%emt 00:00:22]} Rcf4 {[%clk
00:00:52]} {[%emt 00:00:08]} 36. Kb3 {[%clk 00:02:11]} a5 {[%clk 00:00:53]}
{[%emt 00:00:03]} 37. a3 {[%clk 00:02:08]} {[%emt 00:00:05]} a4+ {[%clk
00:00:54]} {[%emt 00:00:01]} 38. Ka2 {[%clk 00:02:11]} Rf2 {[%clk 00:00:55]}
{[%emt 00:00:03]} 39. Bd7 {[%clk 00:02:06]} {[%emt 00:00:07]} Rh2 {[%clk
00:00:53]} {[%emt 00:00:05]} 40. Rdf1 {[%clk 00:02:07]} {[%emt 00:00:02]} Rxf1
{[%clk 00:00:48]} {[%emt 00:00:09]} 41. Rxf1 {[%clk 00:02:09]} Rd2 {[%clk
00:00:50]} {[%emt 00:00:02]} 42. Bxb5 {[%clk 00:02:01]} {[%emt 00:00:10]} Rxd5
{[%clk 00:00:51]} {[%emt 00:00:02]} 43. Bxa4 {[%clk 00:02:02]} {[%emt
00:00:03]} e4 {[%clk 00:00:53]} {[%emt 00:00:01]} 44. Bc6 {[%clk 00:01:43]}
{[%emt 00:00:21]} Re5 {[%clk 00:00:54]} {[%emt 00:00:02]} 45. b4 {[%clk
00:01:46]} e3 {[%clk 00:00:53]} {[%emt 00:00:05]} 46. b5 {[%clk 00:01:48]} Nf5
{[%clk 00:00:34]} {[%emt 00:00:22]} 47. b6 {[%clk 00:01:15]} {[%emt 00:00:37]}
Ne7 {[%clk 00:00:37]} 48. Bf3 {[%clk 00:01:05]} {[%emt 00:00:13]} Rb5 {[%clk
00:00:34]} {[%emt 00:00:06]} 49. b7 {[%clk 00:00:49]} {[%emt 00:00:19]} e2
{[%clk 00:00:32]} {[%emt 00:00:04]} 50. Bxe2 {[%clk 00:00:34]} {[%emt
00:00:18]} Rxb7 {[%clk 00:00:33]} {[%emt 00:00:02]} 51. a4 {[%clk 00:00:25]}
{[%emt 00:00:12]} g5 {[%clk 00:00:35]} 52. Rg1 {[%clk 00:00:25]} {[%emt
00:00:03]} Nd5 {[%clk 00:00:37]} {[%emt 00:00:01]} 53. Rg3 {[%clk 00:00:22]}
{[%emt 00:00:06]} Nf4 {[%clk 00:00:35]} {[%emt 00:00:05]} 54. Bb5 {[%clk
00:00:22]} {[%emt 00:00:03]} Ne6 {[%clk 00:00:34]} {[%emt 00:00:05]} 55. Bc4
{[%clk 00:00:24]} Nc5 {[%clk 00:00:35]} {[%emt 00:00:02]} 56. Ka3 {[%clk
00:00:23]} {[%emt 00:00:05]} Ra7 {[%clk 00:00:34]} {[%emt 00:00:04]} 57. Bb5
{[%clk 00:00:23]} {[%emt 00:00:02]} Ne4 {[%clk 00:00:35]} {[%emt 00:00:02]} 58.
Re3 {[%clk 00:00:24]} {[%emt 00:00:02]} d5 {[%clk 00:00:37]} {[%emt 00:00:02]}
59. Bc6 {[%clk 00:00:22]} {[%emt 00:00:05]} Nf6 {[%clk 00:00:34]} {[%emt
00:00:06]} 60. Kb4 {[%clk 00:00:20]} {[%emt 00:00:04]} g4 {[%clk 00:00:33]}
{[%emt 00:00:04]} 61. a5 {[%clk 00:00:21]} {[%emt 00:00:03]} Rg7 {[%clk
00:00:16]} {[%emt 00:00:20]} 62. Rg3 {[%clk 00:00:08]} {[%emt 00:00:16]} Ne4
{[%clk 00:00:18]} 63. Rg1 {[%clk 00:00:09]} {[%emt 00:00:02]} Nf6 {[%clk
00:00:08]} {[%emt 00:00:14]} 64. a6 {[%clk 00:00:11]} {[%emt 00:00:02]} g3
{[%clk 00:00:10]} 65. Kc5 {[%clk 00:00:06]} {[%emt 00:00:08]} Ne4+ {[%clk
00:00:11]} {[%emt 00:00:02]} 66. Kb6 {[%clk 00:00:06]} {[%emt 00:00:02]} Nxc3
{[%clk 00:00:12]} {[%emt 00:00:02]} 67. a7 {[%clk 00:00:08]} {[%emt 00:00:01]}
Rg8 {[%emt 00:00:11]} 68. a8=Q {[%clk 00:00:08]} {[%emt 00:00:02]} Rxa8 {[%clk
00:00:07]} 69. Bxa8 {[%clk 00:00:10]} Ne2 {[%clk 00:00:05]} {[%emt 00:00:05]}
70. Rg2 {[%clk 00:00:12]} Nf4 {[%clk 00:00:05]} {[%emt 00:00:03]} 71. Rxg3 d4
72. Rf3 {[%clk 00:00:14]} {[%emt 00:00:02]} Nd5+ {[%clk 00:00:09]} {[%emt
00:00:02]} 73. Bxd5 {[%clk 00:00:15]} {[%emt 00:00:03]} 1-0

[Event "7° Rencontres Internationales des Echecs Francophones"]
[Site "PARIS, France"]
[Date "2019.08.10"]
[Round "11.6"]
[White "Hamdouchi, Hicham"]
[Black "Shirazi, Kamran"]
[Result "0-1"]
[TimeControl "90'+30' + 30seconds/move"]
[WhiteElo "2514"]
[BlackElo "2303"]

1. e4 {[%clk 00:05:05]} c5 {[%clk 00:05:00]} {[%emt 00:00:06]} 2. Nc3 {[%clk
00:05:06]} {[%emt 00:00:02]} Nf6 {[%clk 00:05:01]} {[%emt 00:00:02]} 3. Nf3
{[%clk 00:04:54]} {[%emt 00:00:14]} d5 {[%clk 00:05:02]} {[%emt 00:00:02]} 4.
exd5 {[%clk 00:04:47]} {[%emt 00:00:09]} Nxd5 {[%clk 00:05:03]} {[%emt
00:00:02]} 5. Bc4 {[%clk 00:04:43]} {[%emt 00:00:08]} Nb6 {[%clk 00:05:05]}
{[%emt 00:00:01]} 6. Bb5+ {[%clk 00:04:29]} {[%emt 00:00:17]} Bd7 {[%clk
00:05:07]} {[%emt 00:00:02]} 7. a4 {[%clk 00:04:30]} a6 {[%clk 00:05:05]}
{[%emt 00:00:05]} 8. Be2 {[%clk 00:04:25]} {[%emt 00:00:08]} Nc6 {[%clk
00:04:59]} {[%emt 00:00:09]} 9. d4 {[%clk 00:04:07]} {[%emt 00:00:21]} cxd4
{[%clk 00:05:00]} {[%emt 00:00:02]} 10. Nxd4 {[%clk 00:04:09]} {[%emt
00:00:02]} e5 {[%clk 00:05:02]} 11. Nf3 {[%clk 00:03:56]} {[%emt 00:00:16]} Be6
{[%clk 00:04:56]} {[%emt 00:00:09]} 12. O-O {[%clk 00:03:49]} {[%emt 00:00:10]}
Be7 {[%clk 00:04:53]} {[%emt 00:00:06]} 13. Ne4 {[%clk 00:03:24]} {[%emt
00:00:28]} h6 {[%clk 00:04:48]} {[%emt 00:00:07]} 14. Be3 {[%clk 00:03:12]}
{[%emt 00:00:15]} Nd5 {[%clk 00:04:37]} {[%emt 00:00:15]} 15. Bc5 {[%clk
00:03:02]} {[%emt 00:00:13]} f5 {[%clk 00:04:35]} {[%emt 00:00:05]} 16. Bxe7
{[%clk 00:03:02]} {[%emt 00:00:03]} Qxe7 {[%clk 00:04:37]} {[%emt 00:00:01]} 17.
Ng3 {[%clk 00:02:53]} {[%emt 00:00:12]} Rd8 {[%clk 00:04:30]} {[%emt 00:00:10]}
18. Qe1 {[%clk 00:02:25]} {[%emt 00:00:30]} e4 {[%clk 00:04:27]} {[%emt
00:00:06]} 19. Nd2 {[%clk 00:02:21]} {[%emt 00:00:07]} O-O {[%clk 00:04:17]}
{[%emt 00:00:14]} 20. Bc4 {[%clk 00:02:05]} {[%emt 00:00:18]} Nd4 {[%clk
00:04:15]} {[%emt 00:00:06]} 21. Rc1 {[%clk 00:02:02]} {[%emt 00:00:06]} Nf4
{[%clk 00:03:31]} {[%emt 00:00:47]} 22. Qe3 {[%clk 00:01:43]} {[%emt 00:00:22]}
Qg5 {[%clk 00:02:50]} {[%emt 00:00:44]} 23. Rfe1 {[%clk 00:01:03]} {[%emt
00:00:44]} b5 {[%clk 00:02:23]} {[%emt 00:00:30]} 24. axb5 {[%clk 00:01:03]}
{[%emt 00:00:03]} axb5 {[%clk 00:02:25]} 25. Bf1 {[%clk 00:00:49]} {[%emt
00:00:16]} Kh8 {[%clk 00:02:00]} {[%emt 00:00:29]} 26. Kh1 {[%clk 00:00:39]}
{[%emt 00:00:13]} b4 {[%clk 00:02:00]} {[%emt 00:00:03]} 27. f3 {[%clk
00:00:37]} {[%emt 00:00:06]} exf3 {[%clk 00:01:58]} {[%emt 00:00:05]} 28. Nxf3
{[%clk 00:00:37]} {[%emt 00:00:02]} Nxf3 {[%clk 00:01:59]} {[%emt 00:00:02]} 29.
Qxf3 {[%clk 00:00:38]} {[%emt 00:00:02]} Bd5 {[%clk 00:01:59]} {[%emt
00:00:02]} 30. Qe3 {[%clk 00:00:26]} {[%emt 00:00:15]} Rfe8 {[%clk 00:02:01]}
{[%emt 00:00:02]} 31. Qxe8+ {[%clk 00:00:19]} {[%emt 00:00:10]} Rxe8 {[%clk
00:02:03]} 32. Rxe8+ {[%clk 00:00:21]} {[%emt 00:00:02]} Kh7 {[%clk 00:02:05]}
{[%emt 00:00:01]} 33. Rce1 {[%clk 00:00:21]} {[%emt 00:00:02]} h5 {[%clk
00:01:53]} {[%emt 00:00:16]} 34. R8e5 {[%clk 00:00:21]} {[%emt 00:00:03]} g6
{[%clk 00:01:50]} {[%emt 00:00:06]} 35. Rd1 {[%clk 00:00:10]} {[%emt 00:00:13]}
h4 {[%clk 00:01:49]} {[%emt 00:00:04]} 36. Rexd5 {[%clk 00:00:11]} {[%emt
00:00:03]} Nxd5 {[%clk 00:01:51]} {[%emt 00:00:01]} 37. Rxd5 {[%clk 00:00:11]}
{[%emt 00:00:03]} hxg3 {[%clk 00:01:53]} 38. hxg3 {[%clk 00:00:13]} {[%emt
00:00:01]} Qc1 {[%clk 00:01:54]} {[%emt 00:00:04]} 39. Kg1 {[%clk 00:00:13]}
Qxc2 {[%clk 00:01:50]} {[%emt 00:00:07]} 40. Rb5 {[%clk 00:00:12]} {[%emt
00:00:05]} Qxb2 {[%clk 00:01:50]} {[%emt 00:00:02]} 41. Kh2 {[%clk 00:00:14]}
Kh6 {[%clk 00:01:50]} {[%emt 00:00:04]} 42. Bc4 {[%clk 00:00:14]} {[%emt
00:00:01]} Qd4 {[%clk 00:01:51]} {[%emt 00:00:02]} 43. Bf1 {[%clk 00:00:16]}
{[%emt 00:00:02]} Qd6 {[%clk 00:01:46]} {[%emt 00:00:08]} 44. Kg1 {[%clk
00:00:16]} {[%emt 00:00:02]} Qxg3 {[%clk 00:01:46]} {[%emt 00:00:04]} 45. Rxb4
{[%clk 00:00:17]} {[%emt 00:00:02]} Qe3+ {[%clk 00:01:20]} {[%emt 00:00:29]} 46.
Kh1 {[%clk 00:00:19]} {[%emt 00:00:01]} Qc1 {[%clk 00:01:21]} {[%emt 00:00:01]}
47. Rh4+ {[%clk 00:00:16]} {[%emt 00:00:06]} Kg5 {[%clk 00:01:23]} 0-1